Workbook

Sheet Berechnung
J1: 1
J2: =CHOOSE(J1,"d","f","i") -> d
B4: =IF($J$2="d",Texte!B4,IF($J$2="f",OFFSET(Texte!B4,70,0),OFFSET(Texte!B4,140,0))) -> Gaststättenlärm - Beurteilung von Gästeverhalten und Bedienung auf der Terrasse
B5: =IF($J$2="d",Texte!B5,IF($J$2="f",OFFSET(Texte!B5,70,0),OFFSET(Texte!B5,140,0))) -> Lokal: | D5: Restaurant XY | L5: =IF($J$2="d",Texte!L5,IF($J$2="f",OFFSET(Texte!L5,70,0),OFFSET(Texte!L5,140,0))) -> Datum: | M5: 2019-01-01
E6: =IF($J$2="d",Texte!D6,IF($J$2="f",OFFSET(Texte!D6,70,0),OFFSET(Texte!D6,140,0))) -> Für Erläuterungen "?" anklicken | V6: =IF($J$2="d",Texte!V6,IF($J$2="f",OFFSET(Texte!V6,70,0),OFFSET(Texte!V6,140,0))) -> Gästebereich
C7: =IF($J$2="d",Texte!C7,IF($J$2="f",OFFSET(Texte!C7,70,0),OFFSET(Texte!C7,140,0))) -> Beurteilungszeit | E7: =IF($J$2="d",Texte!D7,IF($J$2="f",OFFSET(Texte!D7,70,0),OFFSET(Texte!D7,140,0))) -> 0 | F7: =IF($J$2="d",Texte!F7,IF($J$2="f",OFFSET(Texte!F7,70,0),OFFSET(Texte!F7,140,0))) -> Tag (07 - 19 Uhr) | L7: =IF($J$2="d",Texte!K7,IF($J$2="f",OFFSET(Texte!K7,70,0),OFFSET(Texte!K7,140,0))) -> Abend (19 - 22 Uhr) | Q7: =IF($J$2="d",Texte!P7,IF($J$2="f",OFFSET(Texte!P7,70,0),OFFSET(Texte!P7,140,0))) -> Nacht (22 - 07 Uhr) | V7: =IF($J$2="d",Texte!V7,IF($J$2="f",OFFSET(Texte!V7,70,0),OFFSET(Texte!V7,140,0))) -> Empfangspunkt
E8: =IF($J$2="d",Texte!D8,IF($J$2="f",OFFSET(Texte!D8,70,0),OFFSET(Texte!D8,140,0))) -> 0 | V8: =IF($J$2="d",Texte!V8,IF($J$2="f",OFFSET(Texte!V8,70,0),OFFSET(Texte!V8,140,0))) -> Länge [m] | W8: =IF($J$2="d",Texte!V10,IF($J$2="f",OFFSET(Texte!V10,70,0),OFFSET(Texte!V10,140,0))) -> Höhe [m]
B9: =IF($J$2="d",Texte!B9,IF($J$2="f",OFFSET(Texte!B9,70,0),OFFSET(Texte!B9,140,0))) -> Quellen- und Ausbreitungscharakteristik | E9: =IF($J$2="d",Texte!D9,IF($J$2="f",OFFSET(Texte!D9,70,0),OFFSET(Texte!D9,140,0))) -> 0 | V9: =IF($J$2="d",Texte!V9,IF($J$2="f",OFFSET(Texte!V9,70,0),OFFSET(Texte!V9,140,0))) -> Breite [m]
E10: =IF($J$2="d",Texte!D10,IF($J$2="f",OFFSET(Texte!D10,70,0),OFFSET(Texte!D10,140,0))) -> 0
B11: =IF($J$2="d",Texte!B11,IF($J$2="f",OFFSET(Texte!B11,70,0),OFFSET(Texte!B11,140,0))) -> Kennzahlen Terrasse | E11: =IF($J$2="d",Texte!D11,IF($J$2="f",OFFSET(Texte!D11,70,0),OFFSET(Texte!D11,140,0))) -> 0 | V11: =IF($J$2="d",Texte!V11,IF($J$2="f",OFFSET(Texte!V11,70,0),OFFSET(Texte!V11,140,0))) -> Grundriss, Tag | X11: =IF($J$2="d",Texte!V12,IF($J$2="f",OFFSET(Texte!V12,70,0),OFFSET(Texte!V12,140,0))) -> Seitenriss (X), Tag | Z11: =IF($J$2="d",Texte!V13,IF($J$2="f",OFFSET(Texte!V13,70,0),OFFSET(Texte!V13,140,0))) -> Seitenriss (Y), Tag
C12: =IF($J$2="d",Texte!C12,IF($J$2="f",OFFSET(Texte!C12,70,0),OFFSET(Texte!C12,140,0))) -> Anzahl Aussenplätze | E12: ? | F12: 30 | H12: =F12/(F14*F15) -> 0.3 | J12: =IF($J$2="d",Texte!J12,IF($J$2="f",OFFSET(Texte!J12,70,0),OFFSET(Texte!J12,140,0))) -> Pro Sitzplatz ein Gast; bei Stehtischen Anzahl Gäste abschätzen; Kennwert gemäss Ö-Norm S 5012 beträgt 0.7 Personen pro Quadratmeter (0.7 P/m2). | L12: 30 | N12: =L12/(L14*L15) -> 0.3 | Q12: 30 | S12: =Q12/(Q14*Q15) -> 0.3 | V12: Koordinaten Sitzplatz
C13: =IF($J$2="d",Texte!C13,IF($J$2="f",OFFSET(Texte!C13,70,0),OFFSET(Texte!C13,140,0))) -> Auslastung / Belegung | E13: ? | F13: 0.75 | J13: =IF($J$2="d",Texte!J13,IF($J$2="f",OFFSET(Texte!J13,70,0),OFFSET(Texte!J13,140,0))) -> Als Standartwert ist für neue Anlagen tags wie abends und nachts i.d.R. eine Auslastung von 75% einzusetzen. Damit ist abgedeckt, dass saisonal- , wetter- und zeitbedingt nicht immer alle Plätze belegt sind. Sind bestehende Aussenrestaurants zu beurteilen, so kann aufgrund der effekiv vor Ort vorgefundenen Situation davon abgewichen werden. | L13: 0.75 | Q13: 0.75 | V13: X | W13: Y | X13: X | Y13: H | Z13: Y | AA13: H
C14: =IF($J$2="d",Texte!C14,IF($J$2="f",OFFSET(Texte!C14,70,0),OFFSET(Texte!C14,140,0))) -> Länge (X) | E14: ? | F14: 10 | J14: =IF($J$2="d",Texte!J14,IF($J$2="f",OFFSET(Texte!J14,70,0),OFFSET(Texte!J14,140,0))) -> Längenausdehnung des Sitzplatzbereichs (vgl. auch Diagramm rechts) | L14: 10 | Q14: 10 | V14: 0 | W14: 0 | X14: 0 | Y14: 0.5 | Z14: 0 | AA14: 0.5
C15: =IF($J$2="d",Texte!C15,IF($J$2="f",OFFSET(Texte!C15,70,0),OFFSET(Texte!C15,140,0))) -> Breite (Y) | E15: ? | F15: 10 | J15: =IF($J$2="d",Texte!J15,IF($J$2="f",OFFSET(Texte!J15,70,0),OFFSET(Texte!J15,140,0))) -> Breitenausdehnung des Sitzplatzbereichs (vgl. auch Diagramm rechts) | L15: 10 | Q15: 10 | V15: 0 | W15: =F15 -> 10 | X15: =F14 -> 10 | Y15: 0.5 | Z15: =F15 -> 10 | AA15: 0.5
B16: =IF($J$2="d",Texte!B16,IF($J$2="f",OFFSET(Texte!B16,70,0),OFFSET(Texte!B16,140,0))) -> Geometrie Empfangspunkt (Diagramm rechts) | E16: ? | H16: =Gaststätten_Immissionspegel(F12,F13,F14,F15,F17,F18,F19) -> 47.51593169 | I16: =ROUND((H16-H35)/5,2) -> 0.5 | J16: =IF($J$2="d",Texte!J16,IF($J$2="f",OFFSET(Texte!J16,70,0),OFFSET(Texte!J16,140,0))) -> Die Lage des Immissionsorts (Empfangspunkts) zur Sitzplatzfäche kann anhand der Graphik überprüft werden. | N16: =Gaststätten_Immissionspegel(L12,L13,L14,L15,L17,L18,L19) -> 47.51593169 | O16: =ROUND((N16-N35)/5,2) -> 1.5 | S16: =Gaststätten_Immissionspegel(Q12,Q13,Q14,Q15,Q17,Q18,Q19) -> 47.51593169 | T16: =ROUND((S16-S35)/5,2) -> 2.5 | V16: =F14 -> 10 | W16: =F15 -> 10 | X16: =F17 -> 10 | Y16: =F19 -> 5 | Z16: =F18 -> 15 | AA16: =F19 -> 5
C17: =IF($J$2="d",Texte!C17,IF($J$2="f",OFFSET(Texte!C17,70,0),OFFSET(Texte!C17,140,0))) -> Position in X-Richtung | E17: ? | F17: 10 | J17: =IF($J$2="d",Texte!J17,IF($J$2="f",OFFSET(Texte!J17,70,0),OFFSET(Texte!J17,140,0))) -> Es sind auch negative Distanzangaben möglich. | L17: 10 | Q17: 10 | V17: =F14 -> 10 | W17: 0 | X17: =X16 -> 10 | Y17: =0 -> 0 | Z17: =Z16 -> 15 | AA17: 0
C18: =IF($J$2="d",Texte!C18,IF($J$2="f",OFFSET(Texte!C18,70,0),OFFSET(Texte!C18,140,0))) -> Position in Y-Richtung | E18: ? | F18: 15 | J18: =IF($J$2="d",Texte!J18,IF($J$2="f",OFFSET(Texte!J18,70,0),OFFSET(Texte!J18,140,0))) -> Es sind auch negative Distanzangaben möglich. | L18: 15 | Q18: 15 | V18: =ROUNDUP(MAX($F$14,$F$15,$F$17,$F$18),0) -> 15 | W18: =ROUNDUP(MAX($F$14,$F$15,$F$17,$F$18)*0.8,0) -> 12 | Y18: Max. Wert für Achsen | Z18: =MAX(F14:F15,F17:F19) -> 15
C19: =IF($J$2="d",Texte!C19,IF($J$2="f",OFFSET(Texte!C19,70,0),OFFSET(Texte!C19,140,0))) -> Höhe über Terrain | E19: ? | F19: 5 | J19: =IF($J$2="d",Texte!J19,IF($J$2="f",OFFSET(Texte!J19,70,0),OFFSET(Texte!J19,140,0))) -> Höhendifferenz zwischen Aussenwirtschaftsfläche und Empfangspunkt in der Mitte des offenen Fensters | L19: 5 | Q19: 5 | V19: =IF($J$2="d",Texte!V19,IF($J$2="f",OFFSET(Texte!V19,70,0),OFFSET(Texte!V19,140,0))) -> Grundriss, Abend | X19: =IF($J$2="d",Texte!V20,IF($J$2="f",OFFSET(Texte!V20,70,0),OFFSET(Texte!V20,140,0))) -> Seitenriss (X), Abend | Z19: =IF($J$2="d",Texte!V21,IF($J$2="f",OFFSET(Texte!V21,70,0),OFFSET(Texte!V21,140,0))) -> Seitenriss (Y), Abend
B20: =IF($J$2="d",Texte!B20,IF($J$2="f",OFFSET(Texte!B20,70,0),OFFSET(Texte!B20,140,0))) -> Gästeverhalten | E20: ? | H20: =OFFSET(G20,H21,0) -> -5 | I20: =H20/5 -> -1 | J20: =IF($J$2="d",Texte!J20,IF($J$2="f",OFFSET(Texte!J20,70,0),OFFSET(Texte!J20,140,0))) -> Die Beurteilung des Gästeverhaltens resultiert aus den Angaben zum Betriebskonzept. | N20: =OFFSET(M20,N21,0) -> 0 | O20: =N20/5 -> 0 | S20: =OFFSET(R20,S21,0) -> 0 | T20: =S20/5 -> 0 | V20: Koordinaten Sitzplatz
C21: =IF($J$2="d",Texte!C21,IF($J$2="f",OFFSET(Texte!C21,70,0),OFFSET(Texte!C21,140,0))) -> leise | E21: ? | G21: -5 | H21: 1 | J21: =IF($J$2="d",Texte!J21,IF($J$2="f",OFFSET(Texte!J21,70,0),OFFSET(Texte!J21,140,0))) -> Ruhiges Gästverhalten, z.B. Gartenrestaurant zum Einnehmen von Speisen; Gartencafé | M21: -5 | N21: 2 | R21: -5 | S21: 2 | V21: X | W21: Y | X21: X | Y21: H | Z21: Y | AA21: H
C22: =IF($J$2="d",Texte!C22,IF($J$2="f",OFFSET(Texte!C22,70,0),OFFSET(Texte!C22,140,0))) -> mittel | E22: ? | G22: 0 | J22: =IF($J$2="d",Texte!J22,IF($J$2="f",OFFSET(Texte!J22,70,0),OFFSET(Texte!J22,140,0))) -> Normalfall; z.B. Unterhaltung in normaler Lautstärke; z.B. häufige Serviergeräusche | M22: 0 | R22: 0 | V22: 0 | W22: 0 | X22: 0 | Y22: 0.5 | Z22: 0 | AA22: 0.5
C23: =IF($J$2="d",Texte!C23,IF($J$2="f",OFFSET(Texte!C23,70,0),OFFSET(Texte!C23,140,0))) -> laut | E23: ? | G23: 5 | H23: =IF(F23="x",G23,"") ->  | J23: =IF($J$2="d",Texte!J23,IF($J$2="f",OFFSET(Texte!J23,70,0),OFFSET(Texte!J23,140,0))) -> Z.B. angeregte Unterhaltung mit Lachen; Biergartenatmosphäre | M23: 5 | N23: =IF(L23="x",M23,"") ->  | R23: 5 | S23: =IF(Q23="x",R23,"") ->  | V23: 0 | W23: =L15 -> 10 | X23: =L14 -> 10 | Y23: 0.5 | Z23: =L15 -> 10 | AA23: 0.5
B24: =IF($J$2="d",Texte!B24,IF($J$2="f",OFFSET(Texte!B24,70,0),OFFSET(Texte!B24,140,0))) -> Abstrahlung (vgl. Blatt "Situationsskizzen") | H24: =OFFSET(G24,H25,0) -> 0 | I24: =H24/5 -> 0 | N24: =OFFSET(M24,N25,0) -> 0 | O24: =N24/5 -> 0 | S24: =OFFSET(R24,S25,0) -> 0 | T24: =S24/5 -> 0 | V24: =L14 -> 10 | W24: =L15 -> 10 | X24: =L17 -> 10 | Y24: =L19 -> 5 | Z24: =L18 -> 15 | AA24: =L19 -> 5
C25: =IF($J$2="d",Texte!C25,IF($J$2="f",OFFSET(Texte!C25,70,0),OFFSET(Texte!C25,140,0))) -> Halbraum | D25: =IF($J$2="d",Texte!D25,IF($J$2="f",OFFSET(Texte!D25,70,0),OFFSET(Texte!D25,140,0))) -> (SKIZZE) | E25: ? | G25: 0 | H25: 1 | J25: =IF($J$2="d",Texte!J25,IF($J$2="f",OFFSET(Texte!J25,70,0),OFFSET(Texte!J25,140,0))) -> Der Immissionspunkt liegt z.B. direkt an der Hausfassade über der davorliegenden Sitzplatzfläche; oder die Sitzplatzfläche liegt in genügendem Abstand zur Hausfassade (freistehend). Bewegen Sie die Maus auf das Feld "Skizze", um eine grafische Illustration anzuzeigen. | M25: 0 | N25: 1 | R25: 0 | S25: 1 | V25: =L14 -> 10 | W25: 0 | X25: =X24 -> 10 | Y25: =0 -> 0 | Z25: =Z24 -> 15 | AA25: 0
C26: =IF($J$2="d",Texte!C26,IF($J$2="f",OFFSET(Texte!C26,70,0),OFFSET(Texte!C26,140,0))) -> Viertelraum | D26: =IF($J$2="d",Texte!D26,IF($J$2="f",OFFSET(Texte!D26,70,0),OFFSET(Texte!D26,140,0))) -> (SKIZZE) | E26: ? | G26: 3 | J26: =IF($J$2="d",Texte!J26,IF($J$2="f",OFFSET(Texte!J26,70,0),OFFSET(Texte!J26,140,0))) -> Der Immissionspunkt liegt z.B. direkt über dem Restaurant und es handelt sich um eine enge Gasse; oder die Sitzplatzfläche liegt vor einer Hauswand und der Immissionsort an einer gegenüberliegenden Hausfassade. Bewegen Sie die Maus auf das Feld "Skizze", um eine grafische Illustration anzuzeigen. | M26: 3 | R26: 3 | V26: =ROUNDUP(MAX($L$14,$L$15,$L$17,$L$18),0) -> 15 | W26: =ROUNDUP(MAX($L$14,$L$15,$L$17,$L$18)*0.8,0) -> 12 | Y26: Max. Wert für Achsen | Z26: =MAX(L14:L15,L17:L19) -> 15
C27: =IF($J$2="d",Texte!C27,IF($J$2="f",OFFSET(Texte!C27,70,0),OFFSET(Texte!C27,140,0))) -> Achtelraum | D27: =IF($J$2="d",Texte!D27,IF($J$2="f",OFFSET(Texte!D27,70,0),OFFSET(Texte!D27,140,0))) -> (SKIZZE) | E27: ? | G27: 6 | H27: =IF(F27="x",G27,"") ->  | J27: =IF($J$2="d",Texte!J27,IF($J$2="f",OFFSET(Texte!J27,70,0),OFFSET(Texte!J27,140,0))) -> Die Sitzplatzfäche befindet sich z.B. in einem Innenhof; oder es handelt sich um sehr enge Verhältnisse (zwei oder mehr Reflexionsflächen vorhanden); oder die Sitzplatzfläche liegt in einer Ecksituation. Bewegen Sie die Maus auf das Feld "Skizze", um eine grafische Illustration anzuzeigen. | M27: 6 | N27: =IF(L27="x",M27,"") ->  | R27: 6 | S27: =IF(Q27="x",R27,"") ->  | V27: =IF($J$2="d",Texte!V27,IF($J$2="f",OFFSET(Texte!V27,70,0),OFFSET(Texte!V27,140,0))) -> Grundriss, Nacht | X27: =IF($J$2="d",Texte!V28,IF($J$2="f",OFFSET(Texte!V28,70,0),OFFSET(Texte!V28,140,0))) -> Seitenriss (X), Nacht | Z27: =IF($J$2="d",Texte!V29,IF($J$2="f",OFFSET(Texte!V29,70,0),OFFSET(Texte!V29,140,0))) -> Seitenriss (Y), Nacht
B28: =IF($J$2="d",Texte!B28,IF($J$2="f",OFFSET(Texte!B28,70,0),OFFSET(Texte!B28,140,0))) -> Hinderniswirkung (vgl. Blatt "Situationsskizzen") | E28: ? | H28: =OFFSET(G28,H29,0) -> 0 | I28: =H28/5 -> 0 | J28: =IF($J$2="d",Texte!J28,IF($J$2="f",OFFSET(Texte!J28,70,0),OFFSET(Texte!J28,140,0))) -> Hindernisse können Wände, Dämme oder auch Nebengebäude sein. Bedingung ist eine genügende Schalldämmung des Hindernisses, d.h. keine Bepflanzung (z.B. Hecken) oder durchlässige Steinkorb- und Sichtschutzwände sowie Beschattungssysteme | N28: =OFFSET(M28,N29,0) -> 0 | O28: =N28/5 -> 0 | S28: =OFFSET(R28,S29,0) -> 0 | T28: =S28/5 -> 0 | V28: Koordinaten Sitzplatz
C29: =IF($J$2="d",Texte!C29,IF($J$2="f",OFFSET(Texte!C29,70,0),OFFSET(Texte!C29,140,0))) -> Terrasse gut einsehbar | E29: ? | G29: 0 | H29: 1 | J29: =IF($J$2="d",Texte!J29,IF($J$2="f",OFFSET(Texte!J29,70,0),OFFSET(Texte!J29,140,0))) -> Kein Sicht- und Schallschutz: Beim Blick vom Empfangspunkt zur Terrasse gibt es keine Hindernisse oder diese decken wengier als die Hälfte der Terrassenfläche ab. | M29: 0 | N29: 1 | R29: 0 | S29: 1 | V29: X | W29: Y | X29: X | Y29: H | Z29: Y | AA29: H
C30: =IF($J$2="d",Texte!C30,IF($J$2="f",OFFSET(Texte!C30,70,0),OFFSET(Texte!C30,140,0))) -> Terrasse mässig einsehbar | D30: =IF($J$2="d",Texte!D30,IF($J$2="f",OFFSET(Texte!D30,70,0),OFFSET(Texte!D30,140,0))) -> (SKIZZE) | E30: ? | G30: -3 | H30: =IF(F30="x",G30,"") ->  | J30: =IF($J$2="d",Texte!J30,IF($J$2="f",OFFSET(Texte!J30,70,0),OFFSET(Texte!J30,140,0))) -> Kaum Sicht und Schallschutz: Beim Blick vom Empfangspunkt zur Terrasse decken die Hindernisse etwa die Hälfte der Terrassenfläche ab, so dass dort weder Tische noch Stühle sichtbar sind. Bewegen Sie die Maus auf das Feld "Skizze", um eine grafische Illustration anzuzeigen. | M30: -3 | N30: =IF(L30="x",M30,"") ->  | R30: -3 | S30: =IF(Q30="x",R30,"") ->  | V30: 0 | W30: 0 | X30: 0 | Y30: 0.5 | Z30: 0 | AA30: 0.5
C31: =IF($J$2="d",Texte!C31,IF($J$2="f",OFFSET(Texte!C31,70,0),OFFSET(Texte!C31,140,0))) -> Terrasse kaum einsehbar | D31: =IF($J$2="d",Texte!D31,IF($J$2="f",OFFSET(Texte!D31,70,0),OFFSET(Texte!D31,140,0))) -> (SKIZZE) | E31: ? | G31: -6 | H31: =IF(F31="x",G31,"") ->  | J31: =IF($J$2="d",Texte!J31,IF($J$2="f",OFFSET(Texte!J31,70,0),OFFSET(Texte!J31,140,0))) -> Umfangreicher Sicht- und Schallschutz: Beim Blick vom Empfangspunkt zur Terrasse decken Hindernisse die Tische und Stühle der Terrassenfläche mehrheitlich ab. Bewegen Sie die Maus auf das Feld "Skizze", um eine grafische Illustration anzuzeigen. | M31: -6 | N31: =IF(L31="x",M31,"") ->  | R31: -6 | S31: =IF(Q31="x",R31,"") ->  | V31: 0 | W31: =Q15 -> 10 | X31: =Q14 -> 10 | Y31: 0.5 | Z31: =Q15 -> 10 | AA31: 0.5
C32: =IF($J$2="d",Texte!C32,IF($J$2="f",OFFSET(Texte!C32,70,0),OFFSET(Texte!C32,140,0))) -> Terrasse nicht einsehbar | D32: =IF($J$2="d",Texte!D32,IF($J$2="f",OFFSET(Texte!D32,70,0),OFFSET(Texte!D32,140,0))) -> (SKIZZE) | E32: ? | G32: -9 | H32: =IF(F32="x",G32,"") ->  | J32: =IF($J$2="d",Texte!J32,IF($J$2="f",OFFSET(Texte!J32,70,0),OFFSET(Texte!J32,140,0))) -> Vollständiger Sicht- und Schallschutz: Beim Blick vom Empfangspunkt zur Terrasse decken die Hindernisse Tische und Stühle sowie stehende Personen auf der ganzen Terrassenfläche vollständig ab. Bewegen Sie die Maus auf das Feld "Skizze", um eine grafische Illustration anzuzeigen. | M32: -9 | N32: =IF(L32="x",M32,"") ->  | R32: -9 | S32: =IF(Q32="x",R32,"") ->  | V32: =Q14 -> 10 | W32: =Q15 -> 10 | X32: =Q17 -> 10 | Y32: =Q19 -> 5 | Z32: =Q18 -> 15 | AA32: =Q19 -> 5
V33: =Q14 -> 10 | W33: 0 | X33: =X32 -> 10 | Y33: =0 -> 0 | Z33: =Z32 -> 15 | AA33: 0
B34: =IF($J$2="d",Texte!B34,IF($J$2="f",OFFSET(Texte!B34,70,0),OFFSET(Texte!B34,140,0))) -> Immissionspegel (Summe) | E34: ? | H34: =SUM(H16,H20,H24,H28) -> 42.51593169 | J34: =IF($J$2="d",Texte!J34,IF($J$2="f",OFFSET(Texte!J34,70,0),OFFSET(Texte!J34,140,0))) -> Bei Aussenrestaurants mit mehreren Sitzplatzflächen kann für jede einzelne Teilfläche der Immissionspegel ermittelt werden. Die Teilpegel sind energetisch zu addieren. Der Gesamtimmissionspegel der Sitzplatzflächen kann anschliessend direkt als Zahlenwert eingetragen werden. | N34: =SUM(N16,N20,N24,N28) -> 47.51593169 | S34: =SUM(S16,S20,S24,S28) -> 47.51593169 | V34: =ROUNDUP(MAX($Q$14,$Q$15,$Q$17,$Q$18),0) -> 15 | W34: =ROUNDUP(MAX($Q$14,$Q$15,$Q$17,$Q$18)*0.8,0) -> 12 | Y34: Max. Wert für Achsen | Z34: =MAX(Q14:Q15,Q17:Q19) -> 15
C35: =IF($J$2="d",Texte!C35,IF($J$2="f",OFFSET(Texte!C35,70,0),OFFSET(Texte!C35,140,0))) -> Grundwert für Wahrnehmbarkeit | H35: 45 | N35: 40 | S35: 35 | Y35: Overall max. | Z35: =MAX(Z18,Z26,Z34) -> 15
B36: =IF($J$2="d",Texte!B36,IF($J$2="f",OFFSET(Texte!B36,70,0),OFFSET(Texte!B36,140,0))) -> Wahrnehmbarkeit/Wertung am Immissionsort | H36: =H34-H35 -> -2.484068309 | I36: =ROUND(H36/5,2) -> -0.5 | N36: =N34-N35 -> 7.515931691 | O36: =ROUND(N36/5,2) -> 1.5 | S36: =S34-S35 -> 12.51593169 | T36: =ROUND(S36/5,2) -> 2.5
B38: =IF($J$2="d",Texte!B38,IF($J$2="f",OFFSET(Texte!B38,70,0),OFFSET(Texte!B38,140,0))) -> Empfängercharakteristik
B39: =IF($J$2="d",Texte!B39,IF($J$2="f",OFFSET(Texte!B39,70,0),OFFSET(Texte!B39,140,0))) -> Immissionsort | E39: ? | H39: 1 | I39: =OFFSET(G39,H39,0)/5 -> 0 | J39: =IF($J$2="d",Texte!J39,IF($J$2="f",OFFSET(Texte!J39,70,0),OFFSET(Texte!J39,140,0))) -> Räume in Betrieben, die in Gebieten der ES I, II oder III liegen und für welche nach den Anforderungen der Vollzugsbehörde um 5 dB höhere Belastungsgrenzwerte gelten, sind als Betriebsnutzung einzuordnen. | N39: 1 | O39: =OFFSET(M39,N39,0)/5 -> 0 | S39: 1 | T39: =OFFSET(R39,S39,0)/5 -> 0
C40: =IF($J$2="d",Texte!C40,IF($J$2="f",OFFSET(Texte!C40,70,0),OFFSET(Texte!C40,140,0))) -> Wohnnutzung | G40: 0 | M40: 0 | R40: 0
C41: =IF($J$2="d",Texte!C41,IF($J$2="f",OFFSET(Texte!C41,70,0),OFFSET(Texte!C41,140,0))) -> Betriebsnutzung | G41: -5 | M41: -5 | R41: -5
B42: =IF($J$2="d",Texte!B42,IF($J$2="f",OFFSET(Texte!B42,70,0),OFFSET(Texte!B42,140,0))) -> Empfindlichkeitsstufen | E42: ? | H42: 3 | I42: =OFFSET(G42,H42,0)/5 -> 0 | J42: =IF($J$2="d",Texte!J42,IF($J$2="f",OFFSET(Texte!J42,70,0),OFFSET(Texte!J42,140,0))) -> Empfindlichkeitsstufe gemäss Zuordnung in der Bau- und Zonenordnung | O42: =I42 -> 0 | T42: =I42 -> 0
C43: =IF($J$2="d",Texte!C43,IF($J$2="f",OFFSET(Texte!C43,70,0),OFFSET(Texte!C43,140,0))) -> ES I | G43: 10
C44: =IF($J$2="d",Texte!C44,IF($J$2="f",OFFSET(Texte!C44,70,0),OFFSET(Texte!C44,140,0))) -> ES II | G44: 5
C45: =IF($J$2="d",Texte!C45,IF($J$2="f",OFFSET(Texte!C45,70,0),OFFSET(Texte!C45,140,0))) -> ES III | G45: 0
C46: =IF($J$2="d",Texte!C46,IF($J$2="f",OFFSET(Texte!C46,70,0),OFFSET(Texte!C46,140,0))) -> ES IV | G46: -5
B47: =IF($J$2="d",Texte!B47,IF($J$2="f",OFFSET(Texte!B47,70,0),OFFSET(Texte!B47,140,0))) -> Hintergrundgeräusch (z.B. Verkehrslärm) | E47: ? | H47: 2 | I47: =OFFSET(G47,H47,0)/5 -> -0.6 | J47: =IF($J$2="d",Texte!J47,IF($J$2="f",OFFSET(Texte!J47,70,0),OFFSET(Texte!J47,140,0))) -> Lärmbelastungssituation ohne Berücksichtigung des Aussenrestaurants. Das Hintergrundgeräusch kann tags, abends oder nachts verschieden sein. | N47: 2 | O47: =OFFSET(M47,N47,0)/5 -> -0.6 | S47: 2 | T47: =OFFSET(R47,S47,0)/5 -> -0.6
C48: =IF($J$2="d",Texte!C48,IF($J$2="f",OFFSET(Texte!C48,70,0),OFFSET(Texte!C48,140,0))) -> laut | E48: ? | G48: -6 | J48: =IF($J$2="d",Texte!J48,IF($J$2="f",OFFSET(Texte!J48,70,0),OFFSET(Texte!J48,140,0))) -> Z.B. Ausgehzone, oder stark frequentierte Einkaufsstrasse, oder erheblich störender Strassenverkehrslärm | M48: -6 | R48: -6
C49: =IF($J$2="d",Texte!C49,IF($J$2="f",OFFSET(Texte!C49,70,0),OFFSET(Texte!C49,140,0))) -> mittel | E49: ? | G49: -3 | J49: =IF($J$2="d",Texte!J49,IF($J$2="f",OFFSET(Texte!J49,70,0),OFFSET(Texte!J49,140,0))) -> Z.B. Kernzone mit mässigem Kundenverkehr, oder störender Strassenverkehrslärm, oder bestehender Gastronomiebetrieb mit Aussenwirtschaft bereits vorhanden | M49: -3 | R49: -3
C50: =IF($J$2="d",Texte!C50,IF($J$2="f",OFFSET(Texte!C50,70,0),OFFSET(Texte!C50,140,0))) -> leise | E50: ? | G50: 0 | J50: =IF($J$2="d",Texte!J50,IF($J$2="f",OFFSET(Texte!J50,70,0),OFFSET(Texte!J50,140,0))) -> Z.B. umliegend Wohnzonen, oder Innenhof- oder sehr enge bauliche Situation ohne andere Lärmquellen, oder höchstens geringfügig störender Strassenverkehrslärm | M50: 0 | R50: 0
B52: =IF($J$2="d",Texte!B52,IF($J$2="f",OFFSET(Texte!B52,70,0),OFFSET(Texte!B52,140,0))) -> Betriebscharakteristik
B53: =IF($J$2="d",Texte!B53,IF($J$2="f",OFFSET(Texte!B53,70,0),OFFSET(Texte!B53,140,0))) -> Ortsüblichkeit | E53: ? | H53: 1 | I53: =OFFSET(G53,H53,0)/5 -> 0 | J53: =IF($J$2="d",Texte!J53,IF($J$2="f",OFFSET(Texte!J53,70,0),OFFSET(Texte!J53,140,0))) -> Bei der Beurteilung der Ortsüblichkeit für den Betrieb einer Aussenterasse eines Restaurants steht der Bewilligungsbehörde ein erheblicher Ermessensspielraum zu, was sie als ortsüblich betrachtet. | N53: 1 | O53: =OFFSET(M53,N53,0)/5 -> 0 | S53: 1 | T53: =OFFSET(R53,S53,0)/5 -> 0
C54: =IF($J$2="d",Texte!C54,IF($J$2="f",OFFSET(Texte!C54,70,0),OFFSET(Texte!C54,140,0))) -> nicht gegeben | E54: ? | G54: 0 | J54: =IF($J$2="d",Texte!J54,IF($J$2="f",OFFSET(Texte!J54,70,0),OFFSET(Texte!J54,140,0))) -> Z.B. Wohnzonen, oder Kernzone ohne bestehenden Gastronomiebetrieb | M54: 0 | R54: 0
C55: =IF($J$2="d",Texte!C55,IF($J$2="f",OFFSET(Texte!C55,70,0),OFFSET(Texte!C55,140,0))) -> gegeben | E55: ? | G55: -5 | J55: =IF($J$2="d",Texte!J55,IF($J$2="f",OFFSET(Texte!J55,70,0),OFFSET(Texte!J55,140,0))) -> Z.B. Ausgehquartier, oder Bauzone mit bestehendem Gastronomiebetrieb | M55: -5 | R55: -5
B57: =IF($J$2="d",Texte!B57,IF($J$2="f",OFFSET(Texte!B57,70,0),OFFSET(Texte!B57,140,0))) -> Saisonalität | H57: 2 | I57: =OFFSET(G57,H57,0)/5 -> 0 | N57: 2 | O57: =OFFSET(M57,N57,0)/5 -> 0 | S57: 2 | T57: =OFFSET(R57,S57,0)/5 -> 0
C58: =IF($J$2="d",Texte!C58,IF($J$2="f",OFFSET(Texte!C58,70,0),OFFSET(Texte!C58,140,0))) -> Ganzjahresbetrieb | G58: 1 | M58: 1 | R58: 1
C59: =IF($J$2="d",Texte!C59,IF($J$2="f",OFFSET(Texte!C59,70,0),OFFSET(Texte!C59,140,0))) -> Halbjahresbetrieb | G59: 0 | M59: 0 | R59: 0
C60: =IF($J$2="d",Texte!C60,IF($J$2="f",OFFSET(Texte!C60,70,0),OFFSET(Texte!C60,140,0))) -> Vierteljahresbetrieb | G60: -1 | M60: -1 | R60: -1
B62: =IF($J$2="d",Texte!B64,IF($J$2="f",OFFSET(Texte!B64,70,0),OFFSET(Texte!B64,140,0))) -> Betriebsstunden pro Tag (pro Beurteilungszeit) | F62: 12 | G62: =1/5 -> 0.2 | I62: =IF(F62<=0,"-",ROUND(10*LOG(F62/12)*G62,2)) -> 0 | L62: 3 | M62: =1/5 -> 0.2 | O62: =IF(L62<=0,"-",ROUND(10*LOG(L62/3)*M62,2)) -> 0 | Q62: 2 | R62: 0.4 | T62: =IF(Q62<=0,"-",IF(Q62>=5,1,R62*(Q62-5)+1)) -> -0.2
B64: =IF($J$2="d",Texte!B66,IF($J$2="f",OFFSET(Texte!B66,70,0),OFFSET(Texte!B66,140,0))) -> Ergebnis | D64: =IF($J$2="d",Texte!D66,IF($J$2="f",OFFSET(Texte!D66,70,0),OFFSET(Texte!D66,140,0))) -> Erläuterungen: 1 entspricht dem PW 2 entspricht dem IGW 3 entspricht dem AW | E64: =IF($J$2="d",Texte!E66,IF($J$2="f",OFFSET(Texte!E66,70,0),OFFSET(Texte!E66,140,0))) -> 0 | F64: =IF($J$2="d",OFFSET(Texte!$F66,MIN(3,ROUNDDOWN(I64,0)),0),IF($J$2="f",OFFSET(Texte!$F66,MIN(3,ROUNDDOWN(I64,0))+70,0),OFFSET(Texte!$F66,MIN(3,ROUNDDOWN(I64,0))+140,0))) -> Höchstens geringfügig störend (<PW) | G64: =IF($J$2="d",OFFSET(Texte!$F66,ROUNDDOWN(K64,0),0),IF($J$2="f",OFFSET(Texte!$F66,ROUNDDOWN(K64,0)+70,0),OFFSET(Texte!$F66,ROUNDDOWN(K64,0)+140,0))) -> Höchstens geringfügig störend (<PW) | H64: =IF($J$2="d",OFFSET(Texte!$F66,ROUNDDOWN(L64,0),0),IF($J$2="f",OFFSET(Texte!$F66,ROUNDDOWN(L64,0)+70,0),OFFSET(Texte!$F66,ROUNDDOWN(L64,0)+140,0))) ->  | I64: =IF(I62="-","-",IF(SUM(I36:I62)>0,SUM(I36:I62),0)) -> 0 | L64: =IF($J$2="d",OFFSET(Texte!$F66,MIN(3,ROUNDDOWN(O64,0)),0),IF($J$2="f",OFFSET(Texte!$F66,MIN(3,ROUNDDOWN(O64,0))+70,0),OFFSET(Texte!$F66,MIN(3,ROUNDDOWN(O64,0))+140,0))) -> Höchstens geringfügig störend (<PW) | M64: =IF($J$2="d",OFFSET(Texte!$F66,ROUNDDOWN(Q64,0),0),IF($J$2="f",OFFSET(Texte!$F66,ROUNDDOWN(Q64,0)+70,0),OFFSET(Texte!$F66,ROUNDDOWN(Q64,0)+140,0))) ->  | N64: =IF($J$2="d",OFFSET(Texte!$F66,ROUNDDOWN(R64,0),0),IF($J$2="f",OFFSET(Texte!$F66,ROUNDDOWN(R64,0)+70,0),OFFSET(Texte!$F66,ROUNDDOWN(R64,0)+140,0))) ->  | O64: =IF(O62="-","-",IF(SUM(O36:O62)>0,SUM(O36:O62),0)) -> 0.9 | Q64: =IF($J$2="d",OFFSET(Texte!$F66,MIN(3,ROUNDDOWN(T64,0)),0),IF($J$2="f",OFFSET(Texte!$F66,MIN(3,ROUNDDOWN(T64,0))+70,0),OFFSET(Texte!$F66,MIN(3,ROUNDDOWN(T64,0))+140,0))) -> Störend (zwischen PW und IGW) | R64: =IF($J$2="d",OFFSET(Texte!$F66,ROUNDDOWN(V64,0),0),IF($J$2="f",OFFSET(Texte!$F66,ROUNDDOWN(V64,0)+70,0),OFFSET(Texte!$F66,ROUNDDOWN(V64,0)+140,0))) -> Höchstens geringfügig störend (<PW) | S64: =IF($J$2="d",OFFSET(Texte!$F66,ROUNDDOWN(W64,0),0),IF($J$2="f",OFFSET(Texte!$F66,ROUNDDOWN(W64,0)+70,0),OFFSET(Texte!$F66,ROUNDDOWN(W64,0)+140,0))) -> Höchstens geringfügig störend (<PW) | T64: =IF(T62="-","-",IF(SUM(T36:T62)>0,SUM(T36:T62),0)) -> 1.7

Sheet Situationsskizzen
B2: =IF(Berechnung!$J$2="d",Texte!E24,IF(Berechnung!$J$2="f",OFFSET(Texte!E24,70,0),OFFSET(Texte!E24,140,0))) -> Situtionsskizzen zum Abstrahlverhalten und zur Hinderniswirkung
B4: =IF(Berechnung!$J$2="d",Texte!B24,IF(Berechnung!$J$2="f",OFFSET(Texte!B24,70,0),OFFSET(Texte!B24,140,0))) -> Abstrahlung (vgl. Blatt "Situationsskizzen") | D4: =IF(Berechnung!$J$2="d",Texte!E28,IF(Berechnung!$J$2="f",OFFSET(Texte!E28,70,0),OFFSET(Texte!E28,140,0))) -> Hinderniswirkung
B5: =IF(Berechnung!$J$2="d",Texte!C25,IF(Berechnung!$J$2="f",OFFSET(Texte!C25,70,0),OFFSET(Texte!C25,140,0))) -> Halbraum | D5: =IF(Berechnung!$J$2="d",Texte!C29,IF(Berechnung!$J$2="f",OFFSET(Texte!C29,70,0),OFFSET(Texte!C29,140,0))) -> Terrasse gut einsehbar
B6: =IF(Berechnung!$J$2="d",Texte!J25,IF(Berechnung!$J$2="f",OFFSET(Texte!J25,70,0),OFFSET(Texte!J25,140,0))) -> Der Immissionspunkt liegt z.B. direkt an der Hausfassade über der davorliegenden Sitzplatzfläche; oder die Sitzplatzfläche liegt in genügendem Abstand zur Hausfassade (freistehend). Bewegen Sie die Maus auf das Feld "Skizze", um eine grafische Illustration anzuzeigen.
D7: =IF(Berechnung!$J$2="d",Texte!C30,IF(Berechnung!$J$2="f",OFFSET(Texte!C30,70,0),OFFSET(Texte!C30,140,0))) -> Terrasse mässig einsehbar
B10: =IF(Berechnung!$J$2="d",Texte!C26,IF(Berechnung!$J$2="f",OFFSET(Texte!C26,70,0),OFFSET(Texte!C26,140,0))) -> Viertelraum
B11: =IF(Berechnung!$J$2="d",Texte!J26,IF(Berechnung!$J$2="f",OFFSET(Texte!J26,70,0),OFFSET(Texte!J30,140,0))) -> Der Immissionspunkt liegt z.B. direkt über dem Restaurant und es handelt sich um eine enge Gasse; oder die Sitzplatzfläche liegt vor einer Hauswand und der Immissionsort an einer gegenüberliegenden Hausfassade. Bewegen Sie die Maus auf das Feld "Skizze", um eine grafische Illustration anzuzeigen. | D11: =IF(Berechnung!$J$2="d",Texte!C32,IF(Berechnung!$J$2="f",OFFSET(Texte!C32,70,0),OFFSET(Texte!C32,140,0))) -> Terrasse nicht einsehbar
B14: =IF(Berechnung!$J$2="d",Texte!C27,IF(Berechnung!$J$2="f",OFFSET(Texte!C27,70,0),OFFSET(Texte!C27,140,0))) -> Achtelraum
B15: =IF(Berechnung!$J$2="d",Texte!J27,IF(Berechnung!$J$2="f",OFFSET(Texte!J27,70,0),OFFSET(Texte!J34,140,0))) -> Die Sitzplatzfäche befindet sich z.B. in einem Innenhof; oder es handelt sich um sehr enge Verhältnisse (zwei oder mehr Reflexionsflächen vorhanden); oder die Sitzplatzfläche liegt in einer Ecksituation. Bewegen Sie die Maus auf das Feld "Skizze", um eine grafische Illustration anzuzeigen.

Sheet Texte
B2: Deutsch | D2: (Texte bis und mit Kolonne V; Französisch und Italienisch weiter unten)
B4: Gaststättenlärm - Beurteilung von Gästeverhalten und Bedienung auf der Terrasse | V4: DIAGRAMMBESCHRIFTUNGEN
B5: Lokal: | L5: Datum:
D6: Für Erläuterungen "?" anklicken | V6: Gästebereich
C7: Beurteilungszeit | F7: Tag (07 - 19 Uhr) | K7: Abend (19 - 22 Uhr) | P7: Nacht (22 - 07 Uhr) | V7: Empfangspunkt
V8: Länge [m]
B9: Quellen- und Ausbreitungscharakteristik | V9: Breite [m]
J10: KOMMENTARE | V10: Höhe [m]
B11: Kennzahlen Terrasse | V11: Grundriss, Tag
C12: Anzahl Aussenplätze | J12: Pro Sitzplatz ein Gast; bei Stehtischen Anzahl Gäste abschätzen; Kennwert gemäss Ö-Norm S 5012 beträgt 0.7 Personen pro Quadratmeter (0.7 P/m2). | V12: Seitenriss (X), Tag
C13: Auslastung / Belegung | J13: Als Standartwert ist für neue Anlagen tags wie abends und nachts i.d.R. eine Auslastung von 75% einzusetzen. Damit ist abgedeckt, dass saisonal- , wetter- und zeitbedingt nicht immer alle Plätze belegt sind. Sind bestehende Aussenrestaurants zu beurteilen, so kann aufgrund der effekiv vor Ort vorgefundenen Situation davon abgewichen werden. | V13: Seitenriss (Y), Tag
C14: Länge (X) | J14: Längenausdehnung des Sitzplatzbereichs (vgl. auch Diagramm rechts)
C15: Breite (Y) | J15: Breitenausdehnung des Sitzplatzbereichs (vgl. auch Diagramm rechts)
B16: Geometrie Empfangspunkt (Diagramm rechts) | J16: Die Lage des Immissionsorts (Empfangspunkts) zur Sitzplatzfäche kann anhand der Graphik überprüft werden.
C17: Position in X-Richtung | J17: Es sind auch negative Distanzangaben möglich.
C18: Position in Y-Richtung | J18: Es sind auch negative Distanzangaben möglich.
C19: Höhe über Terrain | J19: Höhendifferenz zwischen Aussenwirtschaftsfläche und Empfangspunkt in der Mitte des offenen Fensters | V19: Grundriss, Abend
B20: Gästeverhalten | J20: Die Beurteilung des Gästeverhaltens resultiert aus den Angaben zum Betriebskonzept. | V20: Seitenriss (X), Abend
C21: leise | J21: Ruhiges Gästverhalten, z.B. Gartenrestaurant zum Einnehmen von Speisen; Gartencafé | V21: Seitenriss (Y), Abend
C22: mittel | J22: Normalfall; z.B. Unterhaltung in normaler Lautstärke; z.B. häufige Serviergeräusche
C23: laut | J23: Z.B. angeregte Unterhaltung mit Lachen; Biergartenatmosphäre
B24: Abstrahlung (vgl. Blatt "Situationsskizzen") | E24: Situtionsskizzen zum Abstrahlverhalten und zur Hinderniswirkung
C25: Halbraum | D25: (SKIZZE) | J25: Der Immissionspunkt liegt z.B. direkt an der Hausfassade über der davorliegenden Sitzplatzfläche; oder die Sitzplatzfläche liegt in genügendem Abstand zur Hausfassade (freistehend). Bewegen Sie die Maus auf das Feld "Skizze", um eine grafische Illustration anzuzeigen.
C26: Viertelraum | D26: (SKIZZE) | J26: Der Immissionspunkt liegt z.B. direkt über dem Restaurant und es handelt sich um eine enge Gasse; oder die Sitzplatzfläche liegt vor einer Hauswand und der Immissionsort an einer gegenüberliegenden Hausfassade. Bewegen Sie die Maus auf das Feld "Skizze", um eine grafische Illustration anzuzeigen.
C27: Achtelraum | D27: (SKIZZE) | J27: Die Sitzplatzfäche befindet sich z.B. in einem Innenhof; oder es handelt sich um sehr enge Verhältnisse (zwei oder mehr Reflexionsflächen vorhanden); oder die Sitzplatzfläche liegt in einer Ecksituation. Bewegen Sie die Maus auf das Feld "Skizze", um eine grafische Illustration anzuzeigen. | V27: Grundriss, Nacht
B28: Hinderniswirkung (vgl. Blatt "Situationsskizzen") | E28: Hinderniswirkung | J28: Hindernisse können Wände, Dämme oder auch Nebengebäude sein. Bedingung ist eine genügende Schalldämmung des Hindernisses, d.h. keine Bepflanzung (z.B. Hecken) oder durchlässige Steinkorb- und Sichtschutzwände sowie Beschattungssysteme | V28: Seitenriss (X), Nacht
C29: Terrasse gut einsehbar | J29: Kein Sicht- und Schallschutz: Beim Blick vom Empfangspunkt zur Terrasse gibt es keine Hindernisse oder diese decken wengier als die Hälfte der Terrassenfläche ab. | V29: Seitenriss (Y), Nacht
C30: Terrasse mässig einsehbar | D30: (SKIZZE) | J30: Kaum Sicht und Schallschutz: Beim Blick vom Empfangspunkt zur Terrasse decken die Hindernisse etwa die Hälfte der Terrassenfläche ab, so dass dort weder Tische noch Stühle sichtbar sind. Bewegen Sie die Maus auf das Feld "Skizze", um eine grafische Illustration anzuzeigen.
C31: Terrasse kaum einsehbar | D31: (SKIZZE) | J31: Umfangreicher Sicht- und Schallschutz: Beim Blick vom Empfangspunkt zur Terrasse decken Hindernisse die Tische und Stühle der Terrassenfläche mehrheitlich ab. Bewegen Sie die Maus auf das Feld "Skizze", um eine grafische Illustration anzuzeigen.
C32: Terrasse nicht einsehbar | D32: (SKIZZE) | J32: Vollständiger Sicht- und Schallschutz: Beim Blick vom Empfangspunkt zur Terrasse decken die Hindernisse Tische und Stühle sowie stehende Personen auf der ganzen Terrassenfläche vollständig ab. Bewegen Sie die Maus auf das Feld "Skizze", um eine grafische Illustration anzuzeigen.
B34: Immissionspegel (Summe) | J34: Bei Aussenrestaurants mit mehreren Sitzplatzflächen kann für jede einzelne Teilfläche der Immissionspegel ermittelt werden. Die Teilpegel sind energetisch zu addieren. Der Gesamtimmissionspegel der Sitzplatzflächen kann anschliessend direkt als Zahlenwert eingetragen werden.
C35: Grundwert für Wahrnehmbarkeit
B36: Wahrnehmbarkeit/Wertung am Immissionsort
B38: Empfängercharakteristik
B39: Immissionsort | J39: Räume in Betrieben, die in Gebieten der ES I, II oder III liegen und für welche nach den Anforderungen der Vollzugsbehörde um 5 dB höhere Belastungsgrenzwerte gelten, sind als Betriebsnutzung einzuordnen.
C40: Wohnnutzung
C41: Betriebsnutzung
B42: Empfindlichkeitsstufen | J42: Empfindlichkeitsstufe gemäss Zuordnung in der Bau- und Zonenordnung
C43: ES I
C44: ES II
C45: ES III
C46: ES IV
B47: Hintergrundgeräusch (z.B. Verkehrslärm) | J47: Lärmbelastungssituation ohne Berücksichtigung des Aussenrestaurants. Das Hintergrundgeräusch kann tags, abends oder nachts verschieden sein.
C48: laut | J48: Z.B. Ausgehzone, oder stark frequentierte Einkaufsstrasse, oder erheblich störender Strassenverkehrslärm
C49: mittel | J49: Z.B. Kernzone mit mässigem Kundenverkehr, oder störender Strassenverkehrslärm, oder bestehender Gastronomiebetrieb mit Aussenwirtschaft bereits vorhanden
C50: leise | J50: Z.B. umliegend Wohnzonen, oder Innenhof- oder sehr enge bauliche Situation ohne andere Lärmquellen, oder höchstens geringfügig störender Strassenverkehrslärm
B52: Betriebscharakteristik
B53: Ortsüblichkeit | J53: Bei der Beurteilung der Ortsüblichkeit für den Betrieb einer Aussenterasse eines Restaurants steht der Bewilligungsbehörde ein erheblicher Ermessensspielraum zu, was sie als ortsüblich betrachtet.
C54: nicht gegeben | J54: Z.B. Wohnzonen, oder Kernzone ohne bestehenden Gastronomiebetrieb
C55: gegeben | J55: Z.B. Ausgehquartier, oder Bauzone mit bestehendem Gastronomiebetrieb
B57: Saisonalität
C58: Ganzjahresbetrieb
C59: Halbjahresbetrieb
C60: Vierteljahresbetrieb
B62: Betriebstage pro Woche (pro Beurteilungszeit)
B64: Betriebsstunden pro Tag (pro Beurteilungszeit)
B66: Ergebnis | D66: Erläuterungen: 1 entspricht dem PW 2 entspricht dem IGW 3 entspricht dem AW | F66: Höchstens geringfügig störend (<PW) | J66: Vorsorgliche Massnahmen prüfen
F67: Störend (zwischen PW und IGW) | J67: Massnahmen prüfen (oder falls keine Massnahmen umsetzbar sind, Erleichterungen gewähren)
F68: Erheblich störend (zwischen IGW und AW) | J68: Massnahmen prüfen (oder Erleichterungen gewähren & SSF einbauen)
F69: Sehr stark störend (>AW) | J69: Massnahmen umsetzen
J70: Massnahmenverfügung aufgrund der kommunalen Rechtslage
B72: Französisch | D72: (Texte bis und mit Kolonne V)
B74: Bruit des restaurants - comportements de la clientèle et service sur la terrasse | V74: Légende des graphiques
B75: Lieu: | L75: Date:
D76: Informations/aide | V76: terrasse
C77: Période | F77: jour (07 - 19 heures) | K77: soir (19 - 22 heures) | P77: nuit (22 - 07 heures) | V77: point d'immission
I78: évaluation | V78: longueur [m]
B79: Caractérisitque de la source et de la propagation | I79: (div. par 5) | V79: largeur [m]
J80: COMMENTAIRES | V80: hauteur [m]
B81: Données pour la terrasse | V81: situation, jour
C82: Nombre des clients | J82: Un client par place assise; pour les places debouts, estimer le nombre de clients; selon la norme autrichienne S 5012, il faut compter 0.7 personne par mètre carré (0.7 p/m2). | V82: vue latérale (X), jour
C83: Taux d'occupation | J83: Pour les nouvelles installations, il faut prévoir un taux d'occupation standard de 75 % (jour, soir et nuit). Cela prend en compte le fait que toutes les places ne sont pas toujours occupées (météo, saison ...). Pour les installations existantes, il est possible de s'écarter de cette règle pour tenir compte de l'occupation effective de la terrasse. | V83: vue latérale (Y), jour
C84: Longueur (direction X) | J84: Longueur de la terrasse (voir graphique à droite)
C85: Largeur (direction Y) | J85: Largeur de la terrasse (voir graphique à droite)
B86: Emplacement du point d'immission | J86: La position du point d'immission (point récepteur) par rapport à la terrasse peut être vérifiée au moyen du graphique à droite.
C87: Position dans la direction X | J87: Des valeurs négatives sont possibles.
C88: Position dans la direction Y | J88: Des valeurs négatives sont possibles.
C89: Hauteur au-dessus du sol | J89: Différence de hauteur entre le sol de la terrasse et le point récepteur situé au milieu de la fenêtre ouverte. | V89: situation, le soir
B90: Comportement de la clientèle | J90: L'évaluation du comportement de la clientèle est défini en fonction des informations sur le concept d'exploitation. | V90: vue latérale (X), le soir
C91: calme | J91: Comportement calme de la clientèle, par exemple terrasse de restaurant pour repas, café ou tea-room | V91: vue latérale (Y), le soir
C92: moyen | J92: Cas habituel, par exemple conversation à voie normale, service fréquent
C93: bruyant | J93: Comportement bruyant, par exemple discussion bruyante avec rires, clientèle bruyante (pub …)
B94: Propagation (cf. page "Situationsskizzen") | E94: Esquisses de la situation en ce qui concerne le comportement aux rayonnements et l'effet d'obstacle
C95: demi-sphère | D95: (SKIZZE) | J95: Le point récepteur est situé dans le prolongement de la façade directement au-dessus de la terrasse; ou la terrasse est éloignée de toute façade (en champ libre). Bewegen Sie die Maus auf das Feld "Skizze", um eine grafische Illustration anzuzeigen.
C96: quart de sphère | D96: (SKIZZE) | J96: Le point récepteur est situé dans le prolongement de la façade directement au-dessus de la terrasse et il s'agit d'une rue étroite avec des bâtiments opposés; ou la terrasse est située contre une façade et le point récepteur dans un bâtiment du côté opposé. Bewegen Sie die Maus auf das Feld "Skizze", um eine grafische Illustration anzuzeigen.
C97: huitième de sphère | D97: (SKIZZE) | J97: La terrasse est située dans une cour intérieure; ou elle se situe dans une environnement très confiné (avec au moins deux surfaces de réflexion); ou la terrasse est située dans un angle entre 2 bâtiments. Bewegen Sie die Maus auf das Feld "Skizze", um eine grafische Illustration anzuzeigen. | V97: situation, nuit
B98: Effet d'écran | E98: Effet d'écran | J98: Tärää | V98: vue latérale (X), nuit
C99: aucun | J99: La vue directe n'est pas interrompue | V99: vue latérale (Y), nuit
C100: faible | D100: (SKIZZE) | J100: La vue directe est partiellement interrompue par un élément massif. Bewegen Sie die Maus auf das Feld "Skizze", um eine grafische Illustration anzuzeigen.
C101: significatif | D101: (SKIZZE) | J101: La vue directe est interrompue par un élément massif. Bewegen Sie die Maus auf das Feld "Skizze", um eine grafische Illustration anzuzeigen.
C102: important | D102: (SKIZZE) | J102: La vue directe est nettement interrompue par un élément massif. Bewegen Sie die Maus auf das Feld "Skizze", um eine grafische Illustration anzuzeigen.
B104: Niveau sonore à l'immission (somme) | J104: Lorqu'il y a plusieurs terrasses, le niveau sonore à l'immission doit être déterminé séparément pour chacune des terrasses. Les niveaux partiels doivent ensuite être additionnés énergétiquement. Le niveau sonore global peut finalement être intégré directement comme valeur numérique.
C105: Valeur de base pour la perceptibilité
B106: Perceptibilité/évaluation au lieu d'immission
B108: Caractéristiques du point récepteur
B109: Lieu d'immission | J109: Les locaux en activités qui se situent en DS I, DS II ou DS III et pour lesquels les autorités d'exécution appliqueraient des exigences 5 dB moins sévères, doivent être considérés comme locaux d'exploitation.
C110: Utilisation comme habitation
C111: Utilisation comme locaux d'exploitation
B112: Degré de sensibilité au bruit | J112: Degré de sensibilité au bruit selon règlement du plan d'affectation
C113: DS I
C114: DS II
C115: DS III
C116: DS IV
B117: Bruit de fond (par exemple trafic routier) | J117: Caractéristique du bruit de fond sans tenir compte du bruit de la terrasse. Le bruit de fond peut être différent selon les périodes (jour, soir ou nuit).
C118: fort | J118: Par exemple zone de loisir, ou rue commerciale très fréquentée, ou bruit du trafic routier très important
C119: moyen | J119: Par exemple zone de centre ville avec beaucoup de piéton, ou bruit important du trafic routier, ou nombreuses terrasses en exploitation
C120: faible | J120: Par exemple zone d'habitation, ou cour intérieure, ou situation confinée sans source de bruit particulière, ou faible trafic routier
B122: Caractéristiques d'exploitation
B123: Conformité à l'affectation | J123: L'autorité d'exécution possède une grande marge de manoeuvre pour évaluer la conformité de l'affectation pour l'exploitation d'une terrasse de restaurant.
C124: non conforme | J124: Par exemple zone d'habitation, zone de centre sans établissement public existant
C125: conforme | J125: Par exemple zone de loisir, zone constructible avec établissements publics existants
B127: Caractère saisonnier
C128: Exploitation durant toute l'année
C129: Exploitation sur la moitié de l'année
C130: Exploitation sur le quart de l'année
B132: Jours d'exploitation par semaine (par période)
B134: Heures d'exploitation par jour (par période)
B136: Résultat | D136: Explications : 1 correspond à la VP 2 correspond à la VLI 3 correspond à la VA | F136: Peu gênant (VP respectée) | J136: Vérifier les mesures préventives
F137: Gênant (entre VP et VLI) | J137: Vérifier les mesures (si aucune mesure proportionnée n'est possible, accorder des allègements)
F138: Très gênant (entre VLI et VA) | J138: Vérifier les mesures (ou accorder des allègements et installer des fenêtres antibruit)
F139: Extrêmement gênant (VA dépassée) | J139: Mettre les mesures en œuvre
J140: Décider des mesures en vertu du droit communal
B142: Italiano | D142: (Testi fino e con la colonna V)
B144: Rumori derivanti da locali pubblici - Valutazione del comportamento dei clienti e servizio in terrazza | V144: TITOLI DIAGRAMMI
B145: Locale: | L145: Data:
D146: Per spiegazioni premere "?" | V146: Settore clienti
C147: Orario di valutazione | F147: Giorno (ore 07 - 19) | K147: Sera (ore 19 - 22) | P147: Notte (ore 22 - 07) | V147: Punto di ricezione
I148: Valutazione | V148: Lunghezza [m]
B149: Caratteristica delle fonti e della diffusione | I149: (diviso 5) | V149: Larghezza [m]
J150: COMMENTI | V150: Altezza [m]
B151: Caratteristiche terrazza | V151: Proiezione, giornata
C152: Numero posti esterni | J152: Un cliente per ogni posto a sedere; in caso di tavoli alti stimare il numero di clienti; valore indicativo secondo la norma Ö (S 5012) si considera 0.7 persona per metro quadrato (0.7 P/m2). | V152: Vista laterale (X), giorno
C153: Sfruttamento / Occupazione | J153: Per valore standard di regola si considera un utilizzo del 75% per un impianto nuovo (gestione giorno, sera e notte). Si rispetta quindi il fatto che i posti disponibili non sono sempre occupati, considerando i fattori stagionali, meteorologici e temporali. Per valutare i ristoranti con posti a sedere all'aperto, è possibile concedere una deroga vista la situazione effettiva esistente. | V153: Vista laterale (Y), giorno
C154: Lunghezza (X) | J154: Estensione in lunghezza del settore posti a sedere (vedi anche diagramma a destra)
C155: Larghezza (Y) | J155: Estensione in larghezza) del settore posti a sedere (vedi anche diagramma a destra)
B156: Geometria punto di ricezione (Diagramma a destra) | J156: La posizione del luogo d'immissione (punto di ricezione) rispetto alla superficie dei posti a sedere può essere verificata tramite il grafico disponibile.
C157: Posizione in direzione X | J157: Possibile Indicare anche distanze negative.
C158: Posizione in direzione Y | J158: Possibile indicare anche distanze negative.
C159: Altezza sopra il terreno | J159: Differenze altimetriche tra le superfici esterne dell'esercizio pubblico e il punto di ricezione al centro della finestra aperta. | V159: Pianta, sera
B160: Comportamento clienti | J160: La valutazione del comportamento dei clienti risulta dalle indicazioni elencate nel concetto di gestione. | V160: Vista laterale (X), sera
C161: silenzioso | J161: Comportamento silenzioso dei clienti, p.es. ristorante con giardino per mangiare; caffè all'aperto. | V161: Vista laterale (Y), sera
C162: medio | J162: Situazione normale; p.es. intrattenimento musicale con livelli di intensità sonora normale; p.es. frequenti rumori prodotti dall'attività di servizio
C163: forte | J163: P.es. discussione animata con risate; atmosfera da giardino di una birreria
B164: Irradiazione (vedi foglio "schizzo situazione") | E164: Schizzi della situazione per quanto riguarda il comportamento delle radiazioni e l'effetto ostacolo
C165: 1/2 locale | D165: (SCHIZZO) | J165: Il punto d'immissione si trova p.es. direttamente sulla facciata di fronte alla superficie dei posti a sedere; oppure la superficie dei posti a sedere si trova a distanza sufficiente dalla facciata dell'edificio (libero). Passate il mouse sopra la casella “schizzo” per consultare un grafico.
C166: 1/4 locale | D166: (SCHIZZO) | J166: Il punto d'immissione si trova p.es. direttamente sopra il ristorante e si tratta di un vicolo molto stretto; oppure la superficie dei posti a sedere è situata davanti alla facciata dell'edificio e il luogo d'immissione di fronte alla facciata stella. Passate il mouse sopra la casella “schizzo” per consultare un grafico.
C167: 1/8 locale | D167: (SCHIZZO) | J167: La superficie dei posti a sedere si trova p.es. in un cortile interno; oppure si tratta di una struttura sistemata in modo molto stretto (esistono due o tre superfici di riflessione); oppure la superficie dei posti a sedere è disposta in un angolo. Passate il mouse sopra la casella “schizzo” per consultare un grafico. | V167: Pianta, notte
B168: Efficienza tamponamento (vedi foglio "schizzo situazione") | E168: Efficienza temponamento | J168: Ostacoli possono essere muri, dighe o edifici adiacenti. Vincolante è un isolamento acustico sufficiente, evitando piantagioni (p.es. siepi) gabbioni, pannelli paravento come pure sistemi di ombreggiamento. | V168: Vista laterale (X), notte
C169: Terrazza ben visibile (nessuna protezione visuale e fonica) | J169: Dal punto di vista della ricezione verso la terrazza non ci sono ostacoli oppure questi coprono meno della metà della superficie dalla stessa. | V169: Vista laterale (Y), notte
C170: Terrazza moderatamente visibile | D170: (SCHIZZO) | J170: Dal punto di vista della ricezione verso la terrazza, gli ostacoli coprono circa la metà della superficie della stessa, tanto che i tavoli e le sedie non risultano più visibili. Passate il mouse sopra la casella “schizzo” per consultare un grafico.
C171: Terrazza appena visibile | D171: (SCHIZZO) | J171: Dal punto di vista della ricezione verso la terrazza, gli ostacoli coprono quasi completamente i tavoli e e le sedie che si trovano sulla stessa. Passate il mouse sopra la casella “schizzo” per consultare un grafico.
C172: Terrazza non visibile (completa privacy e isolamento acustico) | D172: (SCHIZZO) | J172: Dal punto di vista della ricezione verso la terrazza, gli ostacoli coprono completamente i tavoli, le sedie e le persone in piedi per tutta la sua superficie. Passate il mouse sopra la casella “schizzo” per consultare un grafico.
B174: Livello immissione (Somma) | J174: Per i ristoranti con più superfici di posti a sedere all'esterno si può valutare il livello d'immissione fonica per ogni singola superficie. I singoli livelli sonori devono essere addizionati dal punto di vista energetico. Il livello d'immissione totale prodotto dalle superfici dei posti a sedere viene in seguito iscritto come valore assoluto.
C175: Valore indicativo per percepibilità
B176: percepibilità / Valutazione sul posto d'immissione
B178: Tipologia punto di ricezione
B179: Luogo d'immissione | J179: I locali di un'azienda che sono stati attribuiti ai GS I, II o III e per i quali secondo le richieste dell'autorità esecutiva sono stati definiti dei valori limite superiori di 5 dB, devono essere attribuiti all'utilizzazione gestionale.
C180: Utilizzazione abitazione
C181: Utilizzazione esercizio
B182: Gradi di sensibilità | J182: Grado di sensibilità secondo le indicazione riportate nel piano edificabile regolatore e d'azzonamento.
C183: GS I
C184: GS II
C185: GS III
C186: GS IV
B187: Rumori di fondo (p.es. rumore traffico) | J187: Situazione con carico fonico senza considerare il rumore prodotto dal ristorante con servizio all'aperto. I rumori di fondo possono essere differenti dipendentemente dal periodo (giorno, sera o notte).
C188: forti | J188: P.es. zona pedonale, oppure strada commerciale molto frequentata, oppure con traffico stradale molto molesto.
C189: medi | J189: P.es. zona nucleo con traffico clienti moderato, oppure traffico stradale molesto, oppure locale gastronomico con ristorazione esterna esistente.
C190: deboli | J190: P.es. zone abitative nei dintorni, oppure corte interna o situazione edilizia a struttura molto stretta senza altre fonti foniche, oppure traffico stradale a livello molto modesto.
B192: Caratteristica esercizio
B193: Conformità agli usi locali | J193: Per valutare le caratteristiche locali di un ristorante con una terrazza, l'autorità competente dispone di uno spazio di giudizio molto ampio (per quanto concerne il concetto "locale").
C194: non esistenti | J194: P.es. zona abitativa o nucleo senza esercizio pubblico esistente.
C195: esistenti | J195: P.es. quartiere per passeggiare, o zona edificabile con esercizio pubblico esistente.
B197: Esercizio stagionale
C198: Esercizio con licenza annuale)
C199: Esercizio con licenza semestrale)
C200: Esercizio con licenza trimestrale)
B202: Ore di esercizio settimanale (in rapporto all'orario di valutazione)
B204: Ore di esercizio giornaliero (in rapporto all'orario di valutazione)
B206: Risultato | D206: Spiegazioni: 1 corrisponde al VP 2 corrisponde al VLI 3 corrisponde la VA | F206: Il disturbo può al massimo essere considerato esiguo (VP sono rispettati) | J206: Esaminare misure di prevenzione
F207: Molesto (tra VP e VLI) | J207: Esaminare le misure (o nel caso in cui non siano possibili misure, concedere delle facilitazioni)
F208: Notevolmente molesto (tra VLI e VA) | J208: Esaminare le misure (o concedere delle facilitazioni e installare finestre fonoisolanti)
F209: Molto molesto (superiore al VA) | J209: Attuare le misure
J210: Prendere dei provvedimenti sulla base della situazione giuridica a livello comunale

Sheet Tabelle1
